[Event "13th All African Rapid-ch Men 2024"]
[Site "Accra"]
[Date "2024.03.10"]
[Round "2.3"]
[White "Levitan, Caleb Levi"]
[Black "Rakotomaharo, Fy Antenaina"]
[Result "1/2-1/2"]
[ECO "D00"]
[WhiteElo "2235"]
[BlackElo "2454"]
[Annotator "TA"]
[PlyCount "122"]
[EventDate "2024.03.07"]
[EventType "rapid"]
[EventCountry "GHA"]
[SourceTitle "playchess.com"]
[Source "ChessBase"]
[SourceQuality "1"]
[TimeControl "900+10"]

{[%evp 17,122,28,33,33,38,41,33,19,27,31,76,66,85,38,37,0,35,5,29,29,40,0,5,-9,0,0,26,0,10,23,17,13,12,10,28,21,24,13,11,-19,-13,-12,-5,-1,-8,0,0,-6,14,16,14,0,0,0,0,0,0,-688,35,35,7,7,49,48,48,9,9,9,18,18,18,18,18,18,18,18,18,18,18,3,3,-5,-5,-5,-5,-5,0,-5,-5,-5,-5,-5,-5,-5,-5,-5,-5,-5,-5,-5,0,-5,-5,-5,-5,-5,0]} 1. d4 {[%emt 0:00:02]} Nf6 {[%emt 0:00:11]} 2. Bf4 {[%emt 0:00:02]} d5 {[%emt 0:00:02]} 3. e3 {[%emt 0:00:01]} Bf5 {[%emt 0:00:02]} 4. c4 {[%emt 0:00:03]} e6 {[%emt 0:00:01]} 5. Nc3 {[%emt 0:00:01]} Bb4 {[%emt 0:00:01]} 6. Nf3 {[%emt 0:00:01] D00: 1 d4 d5: Unusual lines.} O-O {[%emt 0:00:07]} 7. Be2 {[%emt 0:00:31]} Ne4 {[%emt 0:00:03]} 8. Qb3 {[%emt 0:00:28]} c5 {[%emt 0:00:10]} 9. O-O {[%emt 0:00:19]} Bxc3 $146 {[%emt 0:01:11]} ({Predecessor:} 9... Nc6 10. cxd5 Na5 11. Qd1 Bxc3 12. bxc3 Nxc3 13. Qe1 Nxe2+ 14. Qxe2 Qxd5 15. Qb5 c4 {1-0 Kozak,A (2457)-Nesterov,A (2522) Titled Tuesday intern op 22nd Feb Early blitz 2022 (8)}) 10. bxc3 {[%emt 0:00:02]} Nc6 {[%emt 0:00:05]} 11. cxd5 {[%emt 0:01:50]} exd5 {[%emt 0:00:04]} 12. dxc5 {[%emt 0:01:28]} Nxc5 {[%emt 0:00:53]} 13. Qb5 {[%emt 0:00:19]} Ne4 {[%emt 0:00:16]} 14. Rac1 {[%emt 0:00:33]} Qa5 {[%emt 0:01:42] [#]} 15. Nd4 {[%emt 0:03:47]} (15. c4 $1 $16 {[%cal Rc4d5]} Nc3 16. Rxc3 Qxc3 17. Qxb7 (17. cxd5 Ne7 $16)) 15... Qxb5 {[%emt 0:00:42]} (15... Nxc3 $2 {is the wrong capture.} 16. Rxc3 (16. Qxb7 $2 {perishes.} Nxd4 17. Bh5 Nde2+ 18. Kh1 Qb6 $19) 16... Qxc3 17. Nxf5 $18) 16. Bxb5 {[%emt 0:00:21]} Bd7 {[%emt 0:00:02]} 17. Bd3 {[%emt 0:00:49]} Nc5 {[%emt 0:00:44]} 18. Be2 {[%emt 0:00:14]} Na5 {[%emt 0:00:24]} 19. Rfd1 {[%emt 0:00:38]} Ba4 {[%emt 0:00:22]} 20. Rd2 {[%emt 0:00:39]} Ne4 {[%emt 0:03:26]} 21. Rd3 {[%emt 0:01:42]} g6 {[%emt 0:00:43]} 22. f3 {[%emt 0:00:28]} Nc5 {[%emt 0:00:03]} 23. Rd2 {[%emt 0:00:02]} Nc4 {[%emt 0:01:58]} 24. Bxc4 {[%emt 0:00:21]} dxc4 {[%emt 0:00:02]} 25. Rb1 {[%emt 0:00:56]} Rfd8 {[%emt 0:00:46]} 26. e4 {[%emt 0:01:04]} Nd3 {[%emt 0:00:08]} 27. Be3 {[%emt 0:00:12]} b6 {[%emt 0:01:02]} 28. Ne2 {[%emt 0:00:51]} Rd7 {[%emt 0:00:32]} 29. Nf4 {[%emt 0:00:51]} Nxf4 {[%emt 0:00:55]} 30. Bxf4 {[%emt 0:00:30]} Rxd2 {[%emt 0:00:01]} 31. Bxd2 {[%emt 0:00:02]} Rd8 {[%emt 0:00:01]} 32. Rb2 {[%emt 0:00:31]} f5 {[%emt 0:02:21]} 33. exf5 {[%emt 0:00:31]} gxf5 {[%emt 0:00:02]} 34. Be3 {[%emt 0:00:16]} Rd3 {[%emt 0:00:21]} 35. Bd4 {[%emt 0:00:01]} b5 {[%emt 0:00:02]} 36. Kf2 {[%emt 0:00:21]} a5 {[%emt 0:00:04]} 37. a3 $2 {[%emt 0:00:01][%mdl 8192] [#]} (37. Ke2 $11) 37... Bb3 $2 {[%emt 0:00:09]} ({Black should try} 37... Rxd4 $1 $19 38. cxd4 c3) 38. Ke2 $14 {[%emt 0:00:11]} Bd1+ {[%emt 0:00:03]} 39. Ke1 {[%emt 0:00:17]} Ba4 {[%emt 0:00:29]} 40. Rd2 {[%emt 0:00:12]} Bb3 {[%emt 0:00:06]} 41. Rxd3 {[%emt 0:00:07]} cxd3 {[%emt 0:00:01]} 42. Kd2 {[%emt 0:00:08]} Bc4 {[%emt 0:00:11]} 43. Bb6 {[%emt 0:00:03]} a4 {[%emt 0:00:01]} 44. Ke3 {[%emt 0:00:17]} Kf7 {[%emt 0:00:06]} 45. Bc7 {[%emt 0:00:08]} Ke6 {[%emt 0:00:02]} 46. Bf4 {[%emt 0:00:09]} Kd5 {[%emt 0:00:02]} 47. Kd2 {[%emt 0:00:01]} h5 {[%emt 0:00:18]} 48. h3 {[%emt 0:00:11]} Kc5 {[%emt 0:00:24]} 49. g4 {[%emt 0:00:07]} fxg4 {[%emt 0:00:21]} 50. fxg4 {[%emt 0:00:03]} hxg4 {[%emt 0:00:07]} 51. hxg4 {[%emt 0:00:01]} Kd5 {[%emt 0:00:02]} 52. g5 {[%emt 0:00:05]} Ke4 {[%emt 0:00:01]} 53. Bd6 {[%emt 0:00:01]} Bf7 {[%emt 0:00:02]} 54. Be7 {[%emt 0:00:04]} (54. g6 Bxg6 55. Bf8 Kd5 $17) 54... Bg6 {[%emt 0:00:01]} 55. Bd6 {[%emt 0:00:02]} Kd5 {[%emt 0:00:01]} 56. Be7 {[%emt 0:00:01]} Ke6 {[%emt 0:00:20]} 57. Bc5 {[%emt 0:00:03]} Be4 {[%emt 0:00:01]} 58. Bd4 {[%emt 0:00:09]} Bg6 {[%emt 0:00:30]} 59. Bf6 {[%emt 0:00:02]} Bf5 {[%emt 0:00:05]} 60. Bd4 {[%emt 0:00:05]} Kd5 {[%emt 0:00:01]} 61. Bf6 {[%emt 0:00:03]} Bg6 {[%emt 0:00:16]} 1/2-1/2

[Event "13th All African Rapid-ch Men 2024"]
[Site "Accra"]
[Date "2024.03.10"]
[Round "2.4"]
[White "KIGIGHA, Bomo Lovet"]
[Black "Akpa Prince"]
[Result "1-0"]
[ECO "E65"]
[WhiteElo "2231"]
[BlackElo "1845"]
[Annotator "TA"]
[PlyCount "140"]
[EventDate "2024.03.07"]
[EventType "rapid"]
[EventCountry "GHA"]
[SourceTitle "playchess.com"]
[Source "ChessBase"]
[SourceQuality "1"]
[TimeControl "900+10"]

{[%evp 18,140,48,41,69,56,72,49,56,53,51,58,133,133,133,135,160,114,117,122,118,59,79,76,62,49,66,-316,-317,-509,-503,-500,-490,-495,-478,-333,0,0,0,0,0,0,0,0,0,0,0,0,0,0,475,472,1592,1591,880,1139,904,394,387,370,358,358,516,245,338,331,29979,238,261,253,29971,29972,29947,238,262,245,226,127,295,215,179,98,99,97,97,91,87,85,95,111,104,91,89,0,0,0,102,0,164,0,0,0,0,0,268,268,261,261,254,254,6111,98,243,123,29983,29984,29984,29984,29984,29985,29985,29986,29988,29989,29989]} 1. Nf3 {[%emt 0:00:02]} Nf6 {[%emt 0:00:04]} 2. c4 {[%emt 0:00:06]} g6 {[%emt 0:00:02]} 3. g3 {[%emt 0:00:01]} Bg7 {[%emt 0:00:02]} 4. Bg2 {[%emt 0:00:01]} d6 {[%emt 0:00:06]} 5. O-O {[%emt 0:00:03]} O-O {[%emt 0:00:03]} 6. Nc3 {[%emt 0:00:01]} c5 {[%emt 0:00:09]} 7. d4 {[%emt 0:00:04]} cxd4 {[%emt 0:00:51]} 8. Nxd4 {[%emt 0:00:02]} Na6 {[%emt 0:00:01][%cal Bb8a6,Ba6c5,Bc5e6][%mdl 32]} 9. b3 {[%emt 0:00:03]} Nc5 {[%emt 0:00:29]} 10. Bb2 {[%emt 0:00:02]} Ne6 {[%emt 0:00:02]} 11. Nc2 {[%emt 0:00:08][%cal Bd4c2,Bc2e3,Be3c4][%mdl 32]} Rb8 {[%emt 0:00:18]} 12. Ne3 {[%emt 0:00:05]} a6 {[%emt 0:00:10] White is slightly better.} 13. Qd2 {[%emt 0:00:17]} b5 {[%emt 0:00:05]} 14. Ncd5 {[%emt 0:00:03]} bxc4 {[%emt 0:00:24]} (14... Nxd5 $14 15. cxd5 Bxb2 16. Qxb2 Nc5) 15. Nxf6+ $16 {[%emt 0:00:02]} (15. Nxc4 $6 Nxd5 16. Bxd5 Bxb2 17. Qxb2 Bb7 18. Bxe6 fxe6 $14) 15... exf6 {[%emt 0:00:58]} 16. Nxc4 {[%emt 0:00:02][%cal Ob2a3]} Bb7 {[%emt 0:01:16]} 17. Qxd6 {[%emt 0:00:07]} (17. Nxd6 Bxg2 18. Kxg2 a5 $16) (17. e4 $142) 17... Bxg2 {[%emt 0:00:10]} 18. Kxg2 {[%emt 0:00:03]} Qc8 {[%emt 0:00:06]} 19. Qd5 {[%emt 0:00:37] White has more active pieces.} (19. Rfd1 $16) 19... Rd8 $14 {[%emt 0:00:10]} 20. Qf3 {[%emt 0:00:12]} Ng5 {[%emt 0:00:13]} 21. Qf4 {[%emt 0:16:39][%cal Oh2h4]} Re8 {[%emt 0:00:28]} 22. Bxf6 $2 {[%emt 0:00:00][%mdl 8192]} (22. h4 $14 {keeps the upper hand.} Re4 23. Qd6) 22... Qb7+ $19 {[%emt 0:00:30]} (22... Qc6+ 23. f3 Qxf6 (23... Bxf6 $2 24. Rae1 $19) 24. Rae1) 23. f3 $2 {[%emt 0:00:00]} (23. e4 {is the only way for White.} Rxe4 (23... Qxe4+ 24. Qxe4 Nxe4 25. Bxg7 $16) 24. Nd6 Rxf4+ 25. Nxb7 Rxf6 26. Na5) 23... Rxe2+ {[%emt 0:00:56]} 24. Kh1 {[%emt 0:00:00]} Nh3 {[%emt 0:00:43]} 25. Qd4 {[%emt 0:00:00]} Bxf6 {[%emt 0:03:18]} 26. Qxf6 {[%emt 0:00:00]} Qa7 $2 {[%emt 0:00:49]} (26... Nf2+ $1 $19 27. Kg1 Qa7 (27... Nh3+ $2 28. Kh1 $19)) 27. Ne5 $1 $11 {[%emt 0:00:00]} (27. Rac1 $2 Nf2+ (27... Rxa2 28. Nb6 $15) 28. Kg1 Ng4+ $19 (28... Rxa2 29. Nb6 $15) (28... Rxa2 29. Nb6 $15)) 27... Nf2+ {[%emt 0:01:58]} 28. Rxf2 $1 {[%emt 0:00:00]} Rxf2 {[%emt 0:00:03]} 29. Nc6 {[%emt 0:00:00][%csl LRa7,LRb8]} Qb6 {[%emt 0:00:13] White must now prevent ...Rc2.} 30. Re1 $40 {[%emt 0:00:00][%mdl 128] Intending Ne7+ and mate. White mounts an attack.} Rxh2+ $1 {[%emt 0:00:41]} 31. Kxh2 {[%emt 0:00:00]} Qf2+ {[%emt 0:00:09]} 32. Kh3 {[%emt 0:00:00] White wants to mate with Ne7+.} Qxe1 {[%emt 0:00:17]} 33. Nxb8 {[%emt 0:00:00]} Qh1+ $2 {[%emt 0:01:43][%mdl 8192]} (33... h5 $1 $11 {and Black is okay.} 34. Kh4 (34. Nxa6 $2 Qh1#) 34... Qb4+ 35. Kh3 (35. Qf4 Qe7+ 36. Kh3 Qe1 $11) 35... Qe1) 34. Kg4 $18 {[%emt 0:00:00]} h5+ {[%emt 0:00:23]} (34... Qh5+ $142 35. Kf4 Qh6+ 36. Ke4 Qd2) 35. Kg5 {[%emt 0:00:00][%cal Og5h6] White threatens Kh6! and mate.} Qc1+ {[%emt 0:00:19]} 36. f4 {[%emt 0:00:00][%cal Og5h6,Bf3f4,Bf4f5,Bf5g6][%mdl 32]} Qc5+ {[%emt 0:00:41]} 37. Kh4 {[%emt 0:00:00]} (37. Qe5 $142 Qc8 38. Qd6) 37... Qc8 {[%emt 0:00:20]} 38. f5 $1 {[%emt 0:00:00]} (38. Qxa6 $2 Qg4#) 38... Qxb8 {[%emt 0:00:14]} 39. fxg6 {[%emt 0:00:00][%mdl 4096] Endgame. KQ-KQ} Qb4+ {[%emt 0:00:01]} (39... fxg6 $142 40. Qxg6+ Kf8 41. Qf6+ (41. Qxa6 Qd8+ 42. Kxh5 Qd5+ 43. Kh4 Qe4+ 44. g4 Qe1+ 45. Kh5 Qe5+ 46. g5 Qh2+ 47. Kg6 Qc2+ 48. Kf6 Qf2+ 49. Ke6 Qe3+ 50. Kd7 Qe7+ 51. Kc6 Qe6+ 52. Kb7 Qe7+ 53. Kb8 Qe5+ 54. Ka8 Qe8+ 55. Ka7 Qf7+ 56. Kb8 Qf4+ 57. Ka8 Qxg5 $18) (41. Qxh5 Qb4+ 42. Kh3 Qe1 $18) (41. Kxh5 Qe5+ 42. Qg5 Qe8+ 43. Kh4 Qe6 $18) 41... Kg8 42. Qg5+ (42. Qxa6 Qd8+ 43. Kxh5 Qd5+ 44. Kh6 Qh1+ 45. Kg5 Qd5+ 46. Kf4 Qd4+ 47. Kf3 Qd5+ 48. Kf2 Qd4+ 49. Ke2 Qg4+ 50. Kd2 Qg5+ 51. Kc2 Qxg3 $18) (42. Kxh5 Qb7 $18) 42... Kf7 43. Qxh5+ Kg7 44. Qg4+ Kh7 45. Qf5+ Kg7 46. Qg4+ Kh8 47. Qh5+ Kg7 48. Qg4+) 40. Kg5 {[%emt 0:00:00]} (40. Kxh5 $142 fxg6+ 41. Qxg6+ Kf8 42. Qf6+ (42. Qxa6 Qc5+ 43. Kg6 Qc2+ 44. Kf6 Qf2+ 45. Ke6 Qe3+ 46. Kd7 Kg7 $18) 42... Ke8 43. Qe6+ (43. Qxa6 Qc5+ 44. Kg4 Qd4+ 45. Kh3 Qd7+ 46. g4 Qh7+ 47. Kg3 Qc7+ 48. Kf3 Qc3+ 49. Ke4 Qe1+ 50. Kd4 Qd2+ 51. Qd3 Qxa2 $18) 43... Kd8 44. g4 (44. Qxa6 Qc5+ 45. Kg4 Qd4+ 46. Kh3 Qh8+ 47. Kg2 Qb2+ 48. Kf3 Qc3+ 49. Ke4 Qe1+ 50. Kd5 Qd2+ 51. Kc6 Qg2+ 52. Kb6 Qxg3 $18)) 40... Qc5+ {[%emt 0:01:29]} 41. Kh6 {[%emt 0:01:23][%csl Gh6][%cal Rf6g7]} Qc1+ $2 {[%emt 0:00:33]} (41... Qe3+ $18 42. Kxh5 Qe2+ 43. Kh6 Qh2+ 44. Qh4 Qd2+ 45. Qf4 Qh2+ 46. Kg5 fxg6) 42. Kxh5 $2 {[%emt 0:00:20]} (42. Qg5 $1 Qxg5+ 43. Kxg5 fxg6 44. Kxg6 Kh8 45. Kxh5 Kg7 46. g4 Kh7 47. g5) 42... Qh1+ {[%emt 0:00:05]} 43. Kg5 {[%emt 0:00:06]} Qc1+ $2 {[%emt 0:00:03]} (43... Qd5+ $18 44. Qf5 Qd2+ 45. Kg4 Qe2+ 46. Kh3 fxg6 47. Qxg6+ Kf8) 44. Qf4 {[%emt 0:00:08]} Qc5+ {[%emt 0:00:04]} 45. Qf5 $2 {[%emt 0:01:22]} (45. Kg4 $1 {mates} fxg6 46. Qc4+ Qxc4+ 47. bxc4 Kg7 48. Kg5 Kf7 49. g4 (49. c5 Ke7 50. Kxg6 Ke6 51. g4 Ke5 52. g5 Ke6 53. c6 Kd6) 49... Kg7 50. c5) 45... Qe7+ {[%emt 0:00:06]} 46. Kg4 {[%emt 0:00:09]} Qe2+ {[%emt 0:00:05]} 47. Kh4 {[%emt 0:00:10]} ({Better is} 47. Kh3 $18 fxg6 48. Qxg6+ Kf8 49. Qd6+ Ke8 50. Qb8+ Kd7 51. Qf4 Qxa2 52. Qf5+ Ke8 53. Qe4+ Kd8 54. Qh4+ Kc7 55. Qe7+ Kc6 56. Qe4+ Kd6 57. Qd4+ Ke7 58. Qe3+ Kf7 59. Kh4) 47... Qe7+ {[%emt 0:00:04]} (47... Qh2+ $16 {was necessary.} 48. Kg4 Qe2+ 49. Kh3 fxg6 50. Qxg6+ Kh8) 48. Kh5 {[%emt 0:00:17] Threatening mate with Qxf7+.} Qe2+ {[%emt 0:00:03]} 49. g4 {[%emt 0:00:14]} (49. Qg4 $1 $18 {[%cal Rg4e2]} Qxa2 50. Qc4 Qh2+ 51. Kg4) 49... Qh2+ $16 {[%emt 0:00:05]} 50. Kg5 {[%emt 0:00:00]} Qd2+ {[%emt 0:00:06]} 51. Qf4 {[%emt 0:00:11]} Qd8+ {[%emt 0:00:15]} 52. Kh5 {[%emt 0:00:13]} Qd5+ {[%emt 0:00:09]} 53. Kh6 {[%emt 0:00:15] Qb8+ would kill now.} Qh1+ {[%emt 0:00:02]} 54. Kg5 {[%emt 0:00:02]} Qd5+ {[%emt 0:00:01]} 55. Qf5 {[%emt 0:00:06]} ({White should play} 55. Kh4 $1 $16 Qh1+ 56. Kg3 Qg1+ 57. Kh4 Qh1+ 58. Kg3 Qg1+ 59. Kf3 Qf1+ 60. Ke4 Qb1+ 61. Ke3 Qxg6 62. Kd2) 55... Qd2+ $11 {[%emt 0:00:06]} 56. Qf4 {[%emt 0:00:15]} (56. Kh5 $5 Qh2+ $8 57. Kg5 Qd2+ $11) 56... Qd8+ {[%emt 0:00:02] [#]} (56... Qd5+ $11 {remains equal.} 57. Qf5 Qd2+) 57. Qf6 {[%emt 0:00:12]} (57. Kh5 $6 Qd5+ 58. Qf5 Qh1+ 59. Kg5 Qc1+ 60. Kf6 Qc3+ 61. Kg5 Qd2+ $11) (57. Kf5 $1 $16) 57... Qd5+ {[%emt 0:00:02] [#]} (57... Qd2+ $1 $11 58. Qf4) 58. Kh4 $2 {[%emt 0:00:47]} (58. Kf4 $1 $18 Qd2+ 59. Ke4 Qg2+ 60. Ke3 fxg6 61. Qxg6+ (61. Qxa6 Qg3+ 62. Kd2 Qf4+ 63. Kc3 Qe5+ 64. Kc2 Qh2+ 65. Kd1 Qg1+ 66. Kd2 Qd4+ 67. Qd3 Qb4+ 68. Ke3 Qc5+ 69. Kd2 Qb4+ 70. Kc2 Qxg4 $18) 61... Kh8 62. Qh6+ (62. Qxa6 Qg3+ 63. Kd2 Qf4+ 64. Kc3 Kg7 $14) 62... Kg8 63. Qg6+ (63. Qxa6 Qg3+ 64. Kd2 Kg7 $16) 63... Kh8 64. Qxa6 Qg3+ 65. Kd2 Qxg4 66. Qf6+ Kh7 67. Qe7+ Kg8 68. Qe8+ Kh7 69. Qf7+ Kh6 70. Qf6+ Kh7 71. Qf7+ Kh8 72. Qf6+ Kg8 73. a3) 58... Qh1+ {[%emt 0:00:07]} 59. Kg3 {[%emt 0:00:00]} Qg1+ $1 {[%emt 0:00:05]} 60. Kf4 {[%emt 0:00:00]} Qf1+ $2 {[%emt 0:00:08][%mdl 8192]} (60... Qf2+ $1 $11 {and Black stays safe.} 61. Kg5 Qd2+ 62. Qf4) 61. Kg5 $18 {[%emt 0:00:00]} Qc1+ {[%emt 0:00:05]} 62. Qf4 {[%emt 0:00:00]} Qc5+ {[%emt 0:00:01]} 63. Kh4 {[%emt 0:00:00]} fxg6 $2 {[%emt 0:00:09]} (63... Qe7+ 64. Kh5 Qc5+ 65. g5 fxg6+ 66. Kh6 (66. Kxg6 Qc6+ 67. Kh5 Qh1+ 68. Kg4 Qd1+ 69. Kf5 Qd7+ 70. Ke4 Qb5 $16) 66... Qe7 67. Qb8+ (67. Kxg6 Qe6+ 68. Qf6 Qd7 $11) 67... Kf7) 64. Qf6 $2 {[%emt 0:00:03]} (64. Qc4+ $18 Qxc4 65. bxc4 Kg7 66. Kg5 Kf7 67. Kh6 (67. c5 Ke6 68. Kxg6 Ke5 69. c6 Ke6 70. g5 Kd6 71. Kf6 Kxc6) 67... Kf6 68. g5+ Kf5 69. c5) 64... Qc2 {[%emt 0:00:22]} (64... Kh7 $16 {is a better defense.}) 65. Kg5 {[%emt 0:00:17]} (65. Qxa6 $18 {aiming for Qc4+.} Qh2+ 66. Kg5 Qe5+ 67. Kxg6 Qe4+ 68. Kh5 Qe5+ 69. g5 Qh2+ 70. Kg6 Qc2+ 71. Kf6 Qf2+ 72. Ke6) 65... Kh7 $2 {[%emt 0:00:26][%mdl 8192]} (65... Qxa2 $16 66. Qd8+ (66. Kxg6 Qc2+ 67. Qf5 Qc6+ 68. Kh5 Qh1+ 69. Kg5 Qc1+ 70. Qf4 Qc6 $11) (66. Qxg6+ Kf8 $16) 66... Kg7) 66. Qf7+ {[%emt 0:00:05] White mates.} ({Weaker is} 66. Qxa6 Qd2+ 67. Kf6 Qf4+ 68. Ke7 Qxg4 $11) 66... Kh8 {[%emt 0:00:06]} 67. Kh6 {[%emt 0:00:11][%csl Gh6][%cal Rf7g7]} ({Worse is} 67. Qxg6 Qd2+ 68. Kf6 Qd6+ 69. Kg5 Qd2+ 70. Kf6 Qd6+ 71. Kf7 Qd7+ 72. Kf6 Qd6+ $11) 67... Qh2+ {[%emt 0:00:13]} 68. Kxg6 {[%emt 0:00:02][%csl Gg6][%cal Rf7g7]} Qc2+ {[%emt 0:00:04]} 69. Qf5 {[%emt 0:00:02]} Qc6+ {[%emt 0:00:07]} 70. Qf6+ {[%emt 0:00:12]} Qxf6+ {[%emt 0:00:10] Weighted Error Value: White=0.79/Black=0.83.  Loses game:     	White=1     	Black=5      Missed win:     	White=2     	Black=1      Mistake:       	White=9     	Black=8      Inaccurate:     	---       	Black=1      OK:         	White=10    	Black=12     Best:        	White=9     	Black=12     Strong:       	White=2     	Black=2} 1-0

[Event "13th All African Rapid-ch Men 2024"]
[Site "Accra"]
[Date "2024.03.10"]
[Round "2.5"]
[White "Paiva, Donaldo"]
[Black "Silva, David"]
[Result "1-0"]
[ECO "E63"]
[WhiteElo "2172"]
[BlackElo "2358"]
[Annotator "TA"]
[PlyCount "83"]
[EventDate "2024.03.07"]
[EventType "rapid"]
[EventCountry "GHA"]
[SourceTitle "playchess.com"]
[Source "ChessBase"]
[SourceQuality "1"]
[TimeControl "900+10"]

{[%evp 14,83,42,15,49,39,56,8,22,0,38,29,45,56,69,67,72,76,77,77,78,64,81,83,116,118,115,52,63,17,50,42,51,42,69,69,89,70,138,101,70,42,181,190,145,162,157,165,152,-37,-39,-26,-37,-65,44,45,506,477,480,475,488,452,29986,29987,29987,29988,29984,29981,29981,29982,29981,29982]} 1. d4 {[%emt 0:00:01]} Nf6 {[%emt 0:00:15]} 2. c4 {[%emt 0:00:01]} g6 {[%emt 0:00:02]} 3. g3 {[%emt 0:00:01]} Bg7 {[%emt 0:00:01]} 4. Bg2 {[%emt 0:00:01]} O-O {[%emt 0:00:02]} 5. Nc3 {[%emt 0:00:04]} d6 {[%emt 0:00:02]} 6. Nf3 {[%emt 0:00:01]} Nc6 {[%emt 0:00:06]} 7. O-O {[%emt 0:00:13]} a6 {[%emt 0:00:00]} 8. Bf4 {[%emt 0:00:18]} Bf5 {[%emt 0:01:16]} 9. Rc1 {[%emt 0:00:10]} Ne4 {[%emt 0:00:17]} 10. Nd5 {[%emt 0:00:08]} (10. Nxe4 $14 Bxe4 11. d5 Bxf3 12. Bxf3) 10... Bd7 {[%emt 0:01:09] The position is equal.} 11. Qd3 {[%emt 0:01:34]} f5 {[%emt 0:00:57]} 12. Rfd1 {[%emt 0:00:37]} e6 {[%emt 0:02:49]} 13. Nc3 {[%emt 0:00:09]} g5 {[%emt 0:01:34][%cal Bg6g5,Bg5g4][%mdl 32]} 14. Be3 {[%emt 0:00:15]} g4 {[%emt 0:00:42]} 15. Ne1 {[%emt 0:01:00][%cal Bf3e1,Be1d3,Bd3f4][%mdl 32]} Nxc3 {[%emt 0:00:08]} 16. Qxc3 {[%emt 0:01:23]} a5 {[%emt 0:00:08]} 17. Nd3 {[%emt 0:01:04]} Kh8 {[%emt 0:00:16]} 18. Nf4 {[%emt 0:00:21]} Qe8 {[%emt 0:00:15] Prevents Nh5.} 19. Qd2 {[%emt 0:00:25]} Nd8 {[%emt 0:03:17]} 20. c5 {[%emt 0:01:24]} (20. h3 $16) 20... d5 $14 {[%emt 0:00:10]} 21. f3 {[%emt 0:00:44] White is much more active.} (21. h3 $14 {is superior.}) 21... Nc6 {[%emt 0:00:34][%cal Bd8c6,Bc6e7,Be7f5][%mdl 32]} 22. Rf1 {[%emt 0:00:52]} a4 {[%emt 0:00:43]} 23. Bf2 {[%emt 0:01:04]} h5 {[%emt 0:00:17]} 24. h3 {[%emt 0:00:57]} Ne7 {[%emt 0:02:03]} 25. hxg4 {[%emt 0:01:11]} hxg4 {[%emt 0:00:02]} ({Better is} 25... fxg4 $14 26. fxg4 hxg4) 26. fxg4 {[%emt 0:00:01]} fxg4 {[%emt 0:00:01]} 27. e4 {[%emt 0:00:02] Rce1 is the strong threat.} c6 {[%emt 0:01:44]} (27... Rf6 $1 $14) 28. Be3 $18 {[%emt 0:00:18]} dxe4 {[%emt 0:00:07]} 29. Bxe4 {[%emt 0:00:03] [#] Threatening mate with Qh2+.} Nf5 {[%emt 0:00:01]} 30. Kg2 {[%emt 0:03:08]} Kg8 {[%emt 0:00:14]} 31. Rh1 $2 {[%emt 0:00:05]} (31. Rce1 $16) 31... e5 $15 {[%emt 0:00:11]} 32. dxe5 {[%emt 0:00:51]} Qxe5 {[%emt 0:00:02]} 33. Qd3 {[%emt 0:00:14]} Qxb2+ {[%emt 0:00:19]} (33... a3 $15 34. Bd2 axb2) 34. Bf2 $14 {[%emt 0:00:11] [#] Threatens to win with Rb1. Really sharp!} Be6 $2 {[%emt 0:00:31][%mdl 8192]} 35. Nxe6 $18 {[%emt 0:00:59]} Nh4+ {[%emt 0:00:05]} 36. Rxh4 {[%emt 0:00:02]} (36. gxh4 $2 Qxf2#) 36... Rxf2+ {[%emt 0:00:13]} 37. Kg1 {[%emt 0:00:02]} Rg2+ {[%emt 0:00:27]} (37... Qxc1+ $18 38. Kxf2 Qb2+ 39. Ke3 Qc1+ 40. Ke2 Qb2+ 41. Qc2 Qxc2+ 42. Bxc2 Bf6 43. Rxg4+ Kf7) 38. Bxg2 {[%emt 0:00:11] White mates.} Qxc1+ {[%emt 0:00:01]} 39. Kh2 {[%emt 0:00:03]} Qc3 {[%emt 0:00:03]} 40. Qh7+ {[%emt 0:00:11]} Kf7 {[%emt 0:00:01]} 41. Nxg7 {[%emt 0:00:17]} ({Worse is} 41. Rxg4 Rh8 42. Ng5+ (42. Rxg7+ $2 {perishes.} Qxg7 43. Bh3 Qxh7 $19) 42... Ke7 43. Re4+ Kf8 44. Rf4+ Ke8 45. Re4+ Kf8 46. Ne6+ (46. Rf4+ Ke8 $11) 46... Kf7 47. Ng5+ Kf8 $11) 41... Qxg7 {[%emt 0:00:16]} 42. Qf5+ {[%emt 0:00:02] Weighted Error Value: White=0.21 (precise) /Black=0.66.  Loses game:     	---       	Black=1      Mistake:       	White=4     	Black=4      Inaccurate:     	White=1     	Black=4      OK:         	White=7     	Black=7      Best:        	White=7     	Black=3} 1-0

[Event "13th All African Rapid-ch Men 2024"]
[Site "Accra"]
[Date "2024.03.10"]
[Round "2.6"]
[White "Rongwane, Gomolemo"]
[Black "Asabri, Hussien"]
[Result "1-0"]
[ECO "A49"]
[WhiteElo "2021"]
[BlackElo "2196"]
[Annotator "RC"]
[PlyCount "65"]
[EventDate "2024.03.07"]
[EventType "rapid"]
[EventCountry "GHA"]
[SourceTitle "playchess.com"]
[Source "ChessBase"]
[SourceQuality "1"]
[TimeControl "900+10"]

1. d4 {[%emt 0:00:03]} Nf6 {[%emt 0:00:01]} 2. Nf3 {[%emt 0:00:03]} g6 {[%emt 0:00:01]} 3. g3 {[%emt 0:00:39]} Bg7 {[%emt 0:00:01]} 4. Bg2 {[%emt 0:00:00]} O-O {[%emt 0:00:02]} 5. O-O {[%emt 0:00:02]} d6 {[%emt 0:00:01]} 6. Nc3 {[%emt 0:00:07]} a6 {[%emt 0:00:07]} 7. e4 {[%emt 0:00:09]} Bg4 {[%emt 0:00:20]} 8. h3 {[%emt 0:00:05]} Bxf3 {[%emt 0:00:02]} 9. Bxf3 {[%emt 0:00:03]} Nc6 {[%emt 0:00:47]} 10. Nb1 {[%emt 0:01:03]} Nd7 {[%emt 0:00:54]} 11. c3 {[%emt 0:00:05]} e5 {[%emt 0:00:10]} 12. Be3 {[%emt 0:00:13]} exd4 {[%emt 0:00:44]} 13. cxd4 {[%emt 0:00:04]} Qf6 {[%emt 0:00:15]} 14. Nc3 {[%emt 0:00:45]} Nxd4 {[%emt 0:00:46]} 15. Bg2 {[%emt 0:00:02]} c6 {[%emt 0:00:23]} 16. f4 {[%emt 0:00:42]} Rfe8 {[%emt 0:01:36]} 17. Qd2 {[%emt 0:01:20]} Nb5 {[%emt 0:01:16]} 18. Rac1 {[%emt 0:01:19]} Rad8 {[%emt 0:01:22]} 19. Qf2 {[%emt 0:01:11]} Qe7 {[%emt 0:02:21]} 20. Rfe1 {[%emt 0:00:28]} Nc5 {[%emt 0:00:37]} 21. Bxc5 {[%emt 0:02:04]} dxc5 {[%emt 0:00:34]} 22. e5 {[%emt 0:00:02]} f6 {[%emt 0:02:18]} 23. f5 {[%emt 0:02:47]} fxe5 {[%emt 0:01:05]} 24. fxg6 {[%emt 0:00:04]} e4 {[%emt 0:00:38]} 25. Nxb5 {[%emt 0:01:46]} axb5 {[%emt 0:00:57]} 26. Kh2 {[%emt 0:00:31]} hxg6 {[%emt 0:00:23]} 27. Rxe4 {[%emt 0:00:17]} Qf6 {[%emt 0:00:55]} 28. Rf4 {[%emt 0:00:31]} Qxb2 {[%emt 0:00:17]} 29. Rc2 {[%emt 0:00:02]} Qe5 {[%emt 0:00:04]} 30. Rxc5 {[%emt 0:00:54]} Qe3 {[%emt 0:00:11]} 31. Qc2 {[%emt 0:01:03]} Rd2 {[%emt 0:00:53]} 32. Qxg6 {[%emt 0:00:01]} Re7 {[%emt 0:00:29]} 33. Rcf5 {[%emt 0:00:00]} 1-0